bitfinex/quotes_ETHUSD_20250328
["timestamp","ask_amount","ask_price","bid_price","bid_amount"]
[1743171200231,4.01,1881.2,1881.0,6.37500533]
[1743171200579,4.01,1881.2,1881.0,1.05879533]
[1743171200907,4.01,1881.2,1881.0,6.37501533]
[1743171201108,4.01,1881.2,1881.1,5.31603]
[1743171201481,4.01,1881.2,1881.0,1.45861965]
[1743171201679,4.01,1881.2,1881.0,1.05879533]
[1743171201880,1.6414,1881.1,1881.0,1.05879533]
[1743171202084,1.6414,1881.1,1880.6,5.71174431]
[1743171202085,6.95764,1881.1,1880.6,5.71174431]
[1743171202293,4.01,1881.0,1880.7,1.05288934]
[1743171202607,4.01,1881.0,1880.8,5.31668]
[1743171202806,4.01,1881.0,1880.9,5.3166]
[1743171203224,4.01,1881.0,1880.8,11.22768]
[1743171203510,4.01,1881.0,1880.9,5.3166]
[1743171204322,4.01,1881.0,1880.9,7.98595062]
[1743171204519,4.01,1881.0,1880.9,14.43214962]
[1743171204823,4.01,1881.5,1881.4,5.31519]
[1743171204992,4.01,1881.5,1881.3,5.31543]
[1743171205191,4.01,1881.5,1881.3,5.31531]
[1743171205589,4.01,1881.5,1881.2,10.63133]
[1743171205785,4.01,1881.5,1880.8,5.31673]
[1743171205786,5.31548,1881.3,1880.8,5.31673]
[1743171206009,5.31548,1881.3,1880.8,11.21267]
[1743171206010,4.01,1881.3,1880.8,11.21267]
[1743171206227,4.01,1881.3,1880.9,5.31651]
[1743171206412,4.01,1881.3,1880.8,5.896]
[1743171206608,4.01,1881.3,1880.5,5.31757]
[1743171206609,5.31615,1881.1,1880.5,5.31757]
[1743171206809,10.63241,1881.1,1880.5,5.31757]
[1743171207008,1.6107,1881.2,1880.7,5.3171]
[1743171207214,6.92655,1881.2,1880.7,5.31698]
[1743171207507,6.92655,1881.2,1880.4,1.05118581]
[1743171207508,6.92657,1881.2,1880.4,1.05118581]
[1743171207711,4.01,1881.1,1880.7,5.31699]
[1743171208212,4.01,1881.1,1880.8,5.31688]
[1743171208408,4.01,1881.1,1880.7,2.66935062]
[1743171208608,4.01,1881.1,1880.7,7.98624062]
[1743171208822,4.01,1881.1,1880.7,5.31689]
[1743171208991,5.31703,1880.8,1880.4,1.05118581]
[1743171209311,1.6158,1880.9,1880.2,4.24115062]
[1743171209512,1.6158,1880.9,1880.4,5.31785]
[1743171209699,1.6158,1880.9,1880.2,10.61085062]
[1743171209700,5.31706,1880.8,1880.2,10.61085062]
[1743171209906,5.31706,1880.8,1880.3,5.31829]
[1743171210103,5.31706,1880.8,1880.2,1.05113]
[1743171210104,5.31739,1880.7,1880.2,1.05113]
[1743171210416,4.01,1880.7,1880.3,5.31819]
[1743171211247,4.01,1880.7,1880.2,12.2787]
[1743171211531,1.5565,1880.6,1880.2,5.31857]
[1743171211690,1.5565,1880.6,1880.1,11.66608542]
[1743171211691,6.874,1880.6,1880.1,11.66608542]
[1743171211881,6.874,1880.6,1880.1,5.76202542]
[1743171211882,1.5565,1880.6,1880.1,5.76202542]
[1743171212413,1.5565,1880.6,1880.2,5.31845]
[1743171213886,5.5665,1880.6,1880.1,6.84381072]
[1743171214193,5.5665,1880.6,1880.2,5.31841]
[1743171214515,5.5665,1880.6,1880.2,5.31851]
[1743171215319,10.88397,1880.6,1880.1,12.16289072]
[1743171215524,10.88397,1880.6,1880.1,6.84406072]
[1743171215816,5.5665,1880.6,1880.2,5.31857]
[1743171216121,10.88407,1880.6,1880.1,6.84406072]
[1743171216325,10.88407,1880.6,1880.1,6.84391072]
[1743171216505,5.5665,1880.6,1880.1,1.52523072]
[1743171216705,5.5665,1880.6,1880.3,10.63624]
[1743171216912,5.5665,1880.6,1880.4,5.31798]
[1743171217108,4.01,1880.6,1880.5,5.31773]
[1743171217504,1.5346,1881.1,1880.8,5.31688]
[1743171217705,5.5446,1881.1,1880.9,0.0531602]
[1743171217910,4.01,1881.1,1880.9,5.31649]
[1743171218311,4.01,1881.1,1880.9,10.63291]
[1743171218613,4.01,1881.1,1880.9,5.31642]
[1743171218799,4.01,1881.1,1881.0,5.31632]
[1743171219522,6.94006,1881.1,1880.1,1.1318953]
[1743171219836,10.95008,1881.1,1880.4,1.536]
[1743171220003,10.63174,1881.2,1880.5,7.98707062]
[1743171220207,5.31613,1881.1,1880.6,6.35816001]
[1743171220400,5.31613,1881.1,1880.6,6.76037513]
[1743171220598,5.31579,1881.2,1880.7,5.31716]
[1743171220834,5.31579,1881.2,1880.7,5.31693]
[1743171221253,10.85708,1881.3,1880.7,5.31693]
[1743171221423,16.17276,1881.3,1880.8,5.3699914]
[1743171221629,10.85708,1881.3,1880.8,5.3699914]
[1743171221805,5.31584,1881.2,1880.8,0.0531614]
[1743171222502,5.5416,1881.3,1881.0,5.31628]
[1743171222806,4.01,1881.3,1881.1,5.31601]
[1743171223931,4.01,1881.3,1881.0,5.70649141]
[1743171224135,4.01,1881.3,1881.0,5.70626141]
[1743171224432,4.01,1881.3,1881.2,5.31575]
[1743171224941,4.01,1881.3,1881.0,5.3162]
[1743171225144,4.01,1881.3,1881.0,5.31617]
[1743171225315,4.01,1881.3,1881.0,5.31614]
[1743171225722,4.01,1881.3,1881.0,5.31632]
[1743171226051,4.01,1881.3,1881.0,10.63251]
[1743171226256,4.01,1881.3,1881.0,6.3867724]
[1743171226537,4.01,1881.3,1881.2,5.31575]
[1743171226942,4.01,1881.3,1881.2,5.36890045]
[1743171227643,4.01,1881.3,1881.2,0.05315045]
[1743171227846,4.01,1881.3,1881.1,5.36913067]
[1743171228914,4.01,1881.3,1881.2,5.31575]
[1743171229316,4.01,1881.3,1881.2,0.05315078]
[1743171229516,4.01,1881.3,1881.2,5.31575]
[1743171230451,4.01,1881.3,1881.1,5.31582]
[1743171230751,4.01,1881.3,1881.0,6.3867624]
[1743171231254,4.01,1881.3,1881.0,6.3868824]
[1743171231549,4.01,1881.3,1881.1,5.31585]
[1743171231747,4.01,1881.3,1881.0,6.3868924]
[1743171231935,4.01,1881.3,1881.0,1.0705824]
[1743171232128,4.01,1881.3,1881.0,6.3868724]
[1743171232328,4.01,1881.3,1881.1,5.31602]
[1743171232586,4.01,1881.3,1881.0,11.7030624]
[1743171232863,4.01,1881.3,1881.0,6.3867124]
[1743171233373,4.01,1881.3,1881.1,10.6318]
[1743171233579,4.01,1881.3,1881.1,5.31589]
[1743171233763,4.01,1881.3,1881.0,6.8785824]
[1743171233951,4.01,1881.3,1881.0,12.1947824]
[1743171235178,4.01,1881.3,1881.0,12.1947624]
[1743171235379,4.01,1881.3,1881.2,5.31575]
[1743171235970,4.01,1881.3,1881.1,5.3159]
[1743171236183,4.01,1881.3,1881.2,5.31575]
[1743171236476,4.01,1881.3,1881.2,10.296461]
[1743171236770,4.01,1881.3,1881.2,5.31575]
[1743171239943,4.01,1881.3,1881.1,5.3159]
[1743171240160,4.01,1881.3,1881.0,6.3867824]
[1743171240349,4.01,1881.3,1881.2,5.31575]
[1743171240570,1.5196,1881.7,1881.3,4.01]
[1743171240882,1.5196,1881.7,1881.4,5.31514]
[1743171241083,1.5196,1881.7,1881.4,5.72169189]
[1743171241445,1.5196,1881.7,1881.5,5.3147]
[1743171241647,1.5196,1881.7,1881.2,1.6603]
[1743171241865,1.5196,1881.7,1881.4,5.3151]
[1743171242066,4.01,1881.8,1881.5,5.31473]
[1743171242278,4.01,1881.8,1881.5,10.62948]
[1743171242479,4.01,1881.8,1881.5,10.62949]
[1743171242771,4.01,1881.8,1881.6,5.31438]
[1743171243282,4.01,1881.8,1881.5,5.31487]
[1743171243486,4.01,1881.8,1881.4,12.53596546]
[1743171243816,4.01,1881.8,1881.4,17.85087546]
[1743171244090,4.01,1881.8,1881.4,12.53598546]
[1743171244247,4.01,1881.8,1881.5,5.31469]
[1743171244659,4.01,1881.8,1881.6,5.31444]
[1743171245090,4.01,1881.8,1881.5,5.31488]
[1743171245382,2.66935062,1881.7,1881.4,1.05787041]
[1743171245689,4.01,1881.8,1881.4,6.42606707]
[1743171245843,4.01,1881.8,1881.4,11.68799041]
[1743171246044,4.01,1881.8,1881.4,6.37292041]
[1743171246690,9.32407,1881.8,1881.4,1.46076741]
[1743171246847,9.32407,1881.8,1881.4,6.37305041]
[1743171247053,12.00175286,1881.8,1881.4,6.37305041]
[1743171247780,2.67768286,1881.6,1881.4,1.05787041]
[1743171248149,12.00174286,1881.8,1881.4,6.37306041]
[1743171248479,0.39124701,1881.7,1881.4,6.37306041]
[1743171248980,0.39124701,1881.7,1881.5,5.3147]
[1743171249182,0.39124701,1881.7,1881.4,6.37303041]
[1743171249480,5.70561701,1881.7,1881.4,1.05787041]
[1743171249646,5.31661,1880.9,1880.5,5.31769]
[1743171249994,1.6254,1880.5,1880.3,28.101]
[1743171250854,5.5784,1880.8,1880.4,5.37118654]
[1743171251053,1.08524985,1881.1,1880.4,5.37118654]
[1743171251054,4.01,1881.1,1880.9,5.31641]
[1743171251254,4.01,1881.4,1881.1,5.31582]
[1743171251478,4.01,1881.4,1881.2,5.31564]
[1743171251683,4.01,1881.4,1881.3,5.31547]
[1743171251873,4.01,1881.4,1881.2,5.31564]
[1743171251874,4.01,1881.4,1881.2,5.31561]
[1743171252207,4.01,1881.4,1881.3,5.31547]
[1743171252581,4.01,1881.4,1881.2,5.31564]
[1743171252779,4.01,1881.4,1881.0,5.31628]
[1743171252978,4.01,1881.4,1881.1,5.31599]
[1743171253177,4.01,1881.4,1881.2,5.3155]
[1743171253371,4.01,1881.4,1881.3,5.31547]
[1743171253566,4.01,1881.4,1881.0,11.06918]
[1743171253772,4.01,1881.4,1880.5,5.31769]
[1743171253773,2.67126216,1881.1,1880.5,5.31769]
[1743171254005,1.5355,1880.9,1880.5,5.31758]
[1743171254171,5.5455,1880.9,1880.5,10.63518]
[1743171254506,5.5455,1880.9,1880.5,10.63511]
[1743171254667,5.5455,1880.9,1880.4,12.13314645]
[1743171255074,5.5455,1880.9,1880.5,10.63516]
[1743171255405,5.5455,1880.9,1880.5,5.31755]
[1743171255576,5.5455,1880.9,1880.6,5.31737]
[1743171255785,5.5455,1880.9,1880.6,5.31728]
[1743171256803,5.5455,1880.9,1880.5,5.3177]
[1743171257009,5.31699,1880.8,1880.4,1.05216645]
[1743171257312,5.31699,1880.8,1880.4,5.741]
[1743171257476,5.31699,1880.8,1880.4,11.05888]
[1743171257876,9.32699,1880.8,1880.4,11.05888]
[1743171258070,9.32699,1880.8,1880.4,5.741]
[1743171258383,2.67126216,1880.5,1880.1,5.36873]
[1743171258577,4.01,1880.4,1880.1,0.05]
[1743171258779,9.32817,1880.4,1880.1,0.05]
[1743171258989,9.32812,1880.4,1880.1,0.05]
[1743171259301,9.32803,1880.4,1880.1,0.05]
[1743171259484,9.32802,1880.4,1880.1,0.05]
[1743171259680,4.01,1880.4,1880.1,0.05]
[1743171260009,5.591,1881.2,1880.5,5.31773]
[1743171260300,5.591,1881.2,1880.8,10.63334]
[1743171260471,2.67126216,1880.9,1880.3,5.31818]
[1743171260673,5.31785,1880.5,1880.1,0.05]
[1743171260897,9.3282,1880.4,1880.1,0.05]
[1743171261174,1.5447,1880.3,1880.1,0.05]
[1743171261372,6.86311,1880.3,1880.1,0.05]
[1743171261600,4.01,1880.4,1880.2,5.31858]
[1743171261803,4.01,1880.4,1880.1,0.05]
[1743171262297,4.01,1880.4,1880.1,5.36868]
[1743171262499,4.01,1880.4,1880.1,0.05]
[1743171262912,4.01,1880.4,1880.1,5.42184267]
[1743171263096,4.01,1880.4,1880.1,5.36866]
[1743171263476,4.01,1880.4,1880.2,5.31855]
[1743171263675,1.5447,1880.6,1880.2,5.31855]
[1743171263875,5.6525,1881.2,1880.5,2.67126216]
[1743171264077,5.6525,1881.2,1880.8,5.31675]
[1743171264306,5.6525,1881.2,1880.8,10.63346]
[1743171264488,5.6525,1881.2,1880.8,5.31671]
[1743171264689,5.6525,1881.2,1881.0,5.31614]
[1743171264886,5.6525,1881.2,1881.1,5.31603]
[1743171265508,4.01,1881.2,1881.1,5.31603]
[1743171265711,4.01,1881.4,1881.3,5.31547]
[1743171266009,4.01,1881.4,1881.2,5.31565]
[1743171266010,5.5621,1881.8,1881.7,5.31434]
[1743171266406,5.5621,1881.8,1881.6,5.31445]
[1743171266885,5.5621,1881.8,1881.6,10.62889]
[1743171267208,6.11831,1881.8,1881.4,11.07511]
[1743171267413,6.11831,1881.8,1881.4,5.31511]
[1743171267706,6.11831,1881.8,1881.4,5.315]
[1743171268108,6.11831,1881.8,1881.5,5.3147]
[1743171268315,5.5621,1881.8,1881.7,5.31434]
[1743171268480,4.01,1881.8,1881.7,5.31434]
[1743171269018,4.01,1882.1,1882.0,5.31349]
[1743171269615,4.01,1882.3,1882.2,5.31293]
[1743171272119,1.5284,1882.8,1882.7,5.31152]
[1743171272422,7.5384,1882.8,1882.5,5.31208]
[1743171272722,13.60358,1882.8,1882.3,5.31238]
[1743171272925,13.60358,1882.8,1882.1,5.742]
[1743171272926,6.01,1882.7,1882.6,5.3118]
[1743171273598,7.665,1883.1,1883.0,5.31067]
[1743171273797,7.665,1883.1,1882.8,5.3111]
[1743171274126,8.4315,1883.1,1882.8,5.31102]
[1743171274723,8.4315,1883.1,1882.9,5.31094]
[1743171274928,8.4315,1883.1,1882.9,10.62169]
[1743171275123,7.665,1883.1,1882.9,5.31075]
[1743171275326,7.665,1883.1,1882.7,5.31128]
[1743171275501,7.665,1883.1,1882.7,11.06628]
[1743171275698,7.665,1883.1,1882.8,5.31123]
[1743171275909,7.665,1883.1,1882.9,10.62155]
[1743171276311,7.665,1883.1,1882.8,5.31108]
[1743171276513,7.665,1883.1,1882.7,16.3777]
[1743171276714,8.962515,1883.1,1882.7,5.3113]
[1743171277313,7.665,1883.1,1883.0,5.31067]
[1743171277716,6.01,1883.1,1883.0,5.31067]
[1743171278527,6.01,1883.2,1883.0,5.31067]
[1743171278712,6.01,1883.2,1883.1,5.31039]
[1743171279099,6.01,1883.2,1883.1,11.04939]
[1743171281657,6.01,1883.2,1883.1,5.31039]
[1743171283060,6.81193,1883.1,1882.7,5.31137]
[1743171283360,6.81185,1883.1,1882.7,5.31137]
[1743171283573,5.3108,1883.0,1882.6,5.31177]
[1743171283734,6.01,1882.9,1882.8,5.31123]
[1743171283931,6.01,1882.9,1882.8,6.87943]
[1743171284157,6.01,1882.9,1882.8,5.31123]
[1743171284531,6.01,1882.9,1882.8,5.70833878]
[1743171284743,6.01,1882.9,1882.8,5.31123]
[1743171286351,6.01,1882.9,1882.8,11.03623]
[1743171286763,6.01,1882.9,1882.8,11.43629008]
[1743171287148,6.01,1883.4,1883.2,5.31011]
[1743171287659,6.01,1883.4,1883.2,10.62006]
[1743171287893,6.01,1883.4,1883.3,5.30982]
[1743171288190,6.01,1883.4,1883.2,5.30995]
[1743171288489,6.01,1883.4,1883.1,5.31035]
[1743171288691,6.01,1883.4,1883.2,5.31007]
[1743171288991,7.6234,1883.5,1883.3,5.30982]
[1743171289591,7.6234,1883.5,1883.3,5.30974]
[1743171290000,7.6234,1883.5,1883.2,5.3101]
[1743171290202,7.6234,1883.5,1883.1,5.31028]
[1743171290395,7.6234,1883.5,1883.2,5.31009]
[1743171291370,14.756834,1883.5,1883.1,5.31028]
[1743171291694,14.756834,1883.5,1883.0,10.62118]
[1743171291865,14.756834,1883.5,1883.2,5.31003]
[1743171291866,9.447564,1883.5,1883.2,5.31003]
[1743171292070,7.6234,1883.5,1883.2,5.31003]
[1743171292308,7.6234,1883.5,1883.3,5.30967]
[1743171292599,12.93266,1883.5,1883.1,10.62037]
[1743171292752,7.6234,1883.5,1883.2,5.30991]
[1743171293099,12.93277,1883.5,1883.1,5.31035]
[1743171293457,18.24225,1883.5,1883.1,5.31028]
[1743171293769,5.30956,1883.4,1883.0,10.62114]
[1743171294086,5.31011,1883.2,1882.9,5.31068]
[1743171294293,1.6351,1883.1,1882.7,33.39528]
[1743171294461,6.01,1883.0,1882.9,5.31095]
[1743171295460,6.01,1883.0,1882.9,11.04195]
[1743171297101,6.01,1883.0,1882.9,5.31095]
[1743171297269,6.01,1883.0,1882.9,11.02995]
[1743171298207,6.01,1883.0,1882.9,11.02295]
[1743171298907,6.01,1883.4,1883.2,5.30989]
[1743171299274,6.01,1883.4,1883.1,5.31037]
[1743171299275,11.31964,1883.4,1883.0,10.62108]
[1743171299481,6.01,1883.4,1883.1,5.31027]
[1743171299789,11.31958,1883.4,1883.1,5.31027]
[1743171300292,11.31958,1883.4,1883.0,11.01067]
[1743171300293,5.30987,1883.3,1883.0,11.01067]
[1743171300673,4.31595029,1883.2,1882.7,33.785]
[1743171301006,5.31068,1883.0,1882.7,28.084]
[1743171301205,5.31068,1883.0,1882.3,10.62514]
[1743171301206,5.31123,1882.8,1882.3,10.62514]
[1743171301421,6.01,1882.7,1882.4,5.31236]
[1743171301710,6.01,1883.0,1882.5,5.71746932]
[1743171301915,6.01,1883.0,1882.9,5.31095]
[1743171302072,7.6159,1883.2,1883.0,5.31041]
[1743171302407,6.01,1883.2,1883.0,5.31041]
[1743171302568,6.01,1883.2,1883.0,10.62096]
[1743171302769,6.01,1883.2,1883.0,5.31041]
[1743171303284,11.32021,1883.2,1882.8,5.697]
[1743171303481,11.32021,1883.2,1882.8,11.00821]
[1743171303685,16.63051,1883.2,1882.8,11.00821]
[1743171303972,11.32021,1883.2,1882.8,11.00821]
[1743171304197,6.01,1883.2,1882.9,5.31074]
[1743171304367,6.01,1883.2,1882.8,5.697]
[1743171304568,0.48929094,1883.1,1882.8,16.31893]
[1743171304867,0.48929094,1883.1,1882.9,5.3109]
[1743171305778,6.01,1883.2,1882.8,11.00796]
[1743171305978,11.32024,1883.2,1882.8,11.00796]
[1743171306187,16.63058,1883.2,1882.8,11.00796]
[1743171306376,11.32024,1883.2,1882.8,5.697]
[1743171306591,16.63053,1883.2,1882.8,11.00804]
[1743171307197,6.01,1883.2,1883.1,5.31039]
[1743171307495,6.01,1883.2,1882.9,5.31092]
[1743171307873,0.48926643,1883.1,1882.9,10.62169]
[1743171308073,0.48926643,1883.1,1882.9,5.31077]
[1743171308267,5.79973643,1883.1,1882.7,5.71210059]
[1743171308470,5.31106,1882.9,1882.5,33.39006]
[1743171308669,11.32106,1882.9,1882.5,38.70198]
[1743171308891,11.32106,1882.9,1882.5,33.38992]
[1743171309096,6.85105,1882.7,1882.2,5.31288]
[1743171309299,12.16274,1882.7,1882.3,5.31264]
[1743171309607,5.31252,1882.4,1882.0,5.31341]
[1743171309776,5.31294,1882.2,1882.0,5.681]
[1743171309976,5.31294,1882.2,1881.8,33.39195]
[1743171310180,6.85039,1882.3,1881.9,10.62735]
[1743171310505,5.31309,1882.2,1881.8,39.07189]
[1743171310669,1.5376,1882.3,1881.9,5.31377]
[1743171310874,1.5376,1882.3,1882.1,5.3131]
[1743171311085,1.5376,1882.3,1882.1,5.31304]
[1743171311283,6.01,1882.4,1882.2,5.31293]
[1743171311504,11.32247,1882.4,1882.0,5.31332]
[1743171311697,6.01,1882.4,1882.2,5.31266]
[1743171311895,7.5488,1882.8,1882.6,5.3117]
[1743171312081,7.5488,1882.8,1882.7,5.31152]
[1743171312290,6.01,1882.8,1882.7,5.31152]
[1743171313004,6.01,1882.8,1882.7,10.98752]
[1743171313302,6.01,1882.8,1882.7,5.676]
[1743171313703,6.01,1882.8,1882.7,10.98752]
[1743171313918,7.6262,1883.2,1883.1,5.31039]
[1743171314071,6.01,1883.2,1883.1,5.31039]
[1743171315082,6.01,1883.2,1882.6,1.5746]
[1743171315316,1.608,1883.1,1882.8,5.31113]
[1743171315522,1.608,1883.1,1882.8,5.31104]
[1743171315706,1.608,1883.1,1882.8,10.62209]
[1743171315913,6.91783,1883.3,1882.9,5.31084]
[1743171316222,6.91783,1883.3,1883.0,5.31064]
[1743171316377,7.618,1883.3,1883.0,10.62122]
[1743171316575,7.618,1883.3,1883.1,5.31034]
[1743171317008,7.618,1883.3,1883.1,5.31019]
[1743171317318,7.618,1883.3,1883.1,5.31039]
[1743171317876,7.618,1883.3,1883.1,5.31029]
[1743171318792,7.618,1883.3,1883.1,10.62058]
[1743171318993,7.618,1883.3,1883.1,5.31029]
[1743171319379,6.01,1883.3,1883.1,5.31029]
[1743171319579,6.01,1883.5,1883.4,5.30954]
[1743171319877,1.5332,1883.7,1883.5,5.30926]
[1743171319878,6.01,1883.6,1883.5,5.30926]
[1743171320428,0.05,1883.9,1883.5,5.30926]
[1743171320639,0.05,1883.9,1883.8,7.97276029]
[1743171320783,0.05,1883.9,1883.7,5.30856]
[1743171320988,0.05,1883.9,1883.8,5.30841]
[1743171321332,0.05,1883.9,1883.8,9.54116029]
[1743171322644,0.05,1883.9,1883.8,6.87681]
[1743171322815,0.05,1883.9,1883.7,5.30852]
[1743171323391,6.01,1884.6,1884.3,1.6458]
[1743171323591,6.01,1885.0,1884.3,10.05315029]
[1743171323837,6.01,1885.0,1884.6,5.30615]
[1743171324036,11.31505,1885.0,1884.6,5.30615]
[1743171324223,5.30534,1884.9,1884.5,5.30641]
[1743171324405,5.30572,1884.8,1884.3,16.35659]
[1743171324612,1.5573,1884.7,1884.3,11.04973]
[1743171324794,1.5573,1884.7,1884.3,16.35652]
[1743171324996,1.5573,1884.7,1884.1,5.30735]
[1743171325254,6.86328,1884.7,1884.2,5.30727]
[1743171325530,0.686328,1884.6,1884.2,5.30706]
[1743171325691,6.01,1884.5,1884.4,5.30657]
[1743171326322,6.01,1884.5,1884.2,5.30728]
[1743171326622,6.01,1884.5,1884.4,5.30672]
[1743171326825,6.01,1884.5,1884.3,5.30688]
[1743171327127,6.01,1884.5,1884.2,5.30722]
[1743171327312,6.01,1884.5,1884.1,5.3074]
[1743171327511,1.5875,1884.3,1884.0,5.3077]
[1743171327715,6.89467,1884.3,1883.9,5.30807]
[1743171327926,1.5875,1884.3,1884.0,5.30782]
[1743171328438,1.5875,1884.3,1884.2,5.30729]
[1743171328740,7.141616,1884.5,1884.1,10.61486]
[1743171328741,11.31653,1884.5,1884.1,10.61486]
[1743171328941,13.137429,1884.5,1884.0,5.30782]
[1743171329238,5.30686,1884.4,1884.0,5.30782]
[1743171329536,13.137429,1884.5,1884.0,10.61545]
[1743171329724,11.31653,1884.5,1884.1,5.30746]
[1743171329928,6.01,1884.5,1884.2,5.30713]
[1743171330107,6.01,1884.5,1884.2,5.30724]
[1743171330430,6.01,1884.5,1884.1,5.30746]
[1743171330635,6.01,1884.5,1884.1,5.30734]
[1743171330797,5.3069,1884.4,1884.0,5.30785]
[1743171330998,7.830867,1884.5,1884.0,5.30774]
[1743171331198,11.31652,1884.5,1884.1,5.30739]
[1743171331539,0.20882671,1884.4,1884.1,5.30739]
[1743171331706,0.20882671,1884.4,1884.1,2.66435029]
[1743171331912,0.20882671,1884.4,1884.3,5.30701]
[1743171332318,0.20882671,1884.4,1884.0,5.30766]
[1743171332519,0.20882671,1884.4,1883.9,5.30795]
[1743171332520,6.89151,1884.2,1883.9,5.30795]
[1743171332829,5.48616303,1884.1,1883.8,28.074]
[1743171333031,0.17850303,1884.1,1883.8,33.3823]
[1743171333208,0.17850303,1884.1,1883.9,5.30792]
[1743171333804,0.17850303,1884.1,1884.0,5.30785]
[1743171334221,0.17850303,1884.1,1883.8,33.38218]
[1743171334399,5.48616303,1884.1,1883.8,28.074]
[1743171334599,6.01,1884.0,1883.5,5.30915]
[1743171334804,6.85896,1883.8,1883.4,12.93663397]
[1743171335016,5.48494657,1883.9,1883.4,10.68311331]
[1743171335226,0.17503796,1883.7,1883.6,5.30898]
[1743171335448,11.31801,1884.0,1883.6,5.30898]
[1743171335754,5.30814,1883.9,1883.5,5.30924]
[1743171335936,7.10965796,1883.8,1883.5,5.30924]
[1743171336302,12.41829796,1883.8,1883.4,12.93662397]
[1743171336563,11.31872,1883.7,1883.4,7.62709397]
[1743171336933,5.47985422,1883.6,1883.4,7.62709397]
[1743171337105,6.93585,1883.4,1883.1,28.064]
[1743171337300,7.6362,1883.4,1883.1,28.064]
[1743171337552,0.17067422,1883.3,1883.1,28.064]
[1743171337849,0.17067422,1883.3,1883.2,12.083739]
[1743171338134,6.01,1883.4,1883.3,5.30982]
[1743171338335,6.01,1883.4,1883.2,16.655409]
[1743171338336,6.18067422,1883.4,1883.2,6.85041]
[1743171338523,7.69817422,1883.4,1883.1,33.37434]
[1743171338703,7.69817422,1883.4,1883.1,38.68458]
[1743171338903,6.18067422,1883.4,1883.3,5.30982]
[1743171339134,6.18067422,1883.4,1883.3,11.35208]
[1743171339433,6.18067422,1883.4,1883.3,10.297721]
[1743171339633,6.18067422,1883.4,1883.3,12.57952]
[1743171340043,6.18067422,1883.4,1883.3,20.342567]
[1743171340236,6.01,1883.4,1883.3,12.57952]
[1743171340431,6.01,1883.4,1883.3,19.14369]
[1743171340632,6.18016067,1883.4,1883.3,18.94115729]
[1743171341017,6.01,1883.4,1883.3,18.94115729]
[1743171341220,7.6105,1884.2,1883.8,5.30828]
[1743171341439,12.91786,1884.2,1883.8,5.30828]
[1743171341644,0.17016067,1884.1,1883.7,7.97285029]
[1743171342053,0.17016067,1884.1,1884.0,5.30785]
[1743171342236,0.17016067,1884.1,1883.9,5.30804]
[1743171342436,0.17016067,1884.1,1883.8,5.30835]
[1743171342643,0.17016067,1884.1,1883.8,10.61659]
[1743171342952,0.17016067,1884.1,1883.8,10.61647]
[1743171343154,0.17016067,1884.1,1883.9,5.3081]
[1743171343557,0.17016067,1884.1,1884.0,5.30785]
[1743171343772,0.17016067,1884.1,1884.0,6.91635]
[1743171343931,0.17016067,1884.1,1884.0,39.014444]
[1743171344260,1.6553,1884.8,1884.6,5.30604]
[1743171344425,6.01,1884.9,1884.6,5.30604]
[1743171344626,0.1603459,1884.7,1884.6,5.30604]
[1743171344825,6.01,1884.9,1884.6,5.30604]
[1743171345035,0.1625941,1884.7,1884.6,5.30604]
[1743171345252,6.01,1884.9,1884.6,5.30604]
[1743171345531,6.01,1884.9,1884.5,5.30643]
[1743171345738,1.6146,1884.6,1884.2,5.30728]
[1743171346037,5.30685,1884.4,1884.0,5.701]
[1743171346238,6.01,1884.4,1884.3,5.30701]
[1743171346536,6.17766768,1884.4,1884.3,7.97136029]
[1743171346850,6.17766768,1884.4,1884.3,5.30701]
[1743171347229,6.17766768,1884.4,1884.2,5.30705]
[1743171347626,6.17766768,1884.4,1884.2,5.30703]
[1743171348028,6.17766768,1884.4,1884.1,33.37355]
[1743171348262,13.09047768,1884.4,1884.1,28.066]
[1743171348556,7.78366768,1884.4,1884.3,5.30701]
[1743171348762,6.17766768,1884.4,1884.3,5.30701]
[1743171349352,6.17766768,1884.4,1884.2,5.30719]
[1743171349962,6.17766768,1884.4,1884.2,5.30722]
[1743171350162,6.17766768,1884.4,1884.2,5.30719]
[1743171350360,6.17766768,1884.4,1884.3,5.30701]
[1743171351735,0.16766768,1884.4,1884.3,5.36007628]
[1743171351949,6.01,1884.9,1884.6,5.30593]
[1743171352274,0.16593393,1884.8,1884.5,5.687]
[1743171352438,0.16593393,1884.8,1884.5,5.30626]
[1743171352767,5.47156393,1884.8,1884.2,5.686]
[1743171352969,6.01,1884.7,1884.4,5.30663]
[1743171353157,0.15396826,1884.6,1884.5,5.30641]
[1743171353465,7.15815639,1884.7,1884.5,5.30641]
[1743171353668,0.15396826,1884.6,1884.5,5.30641]
[1743171354038,6.01,1884.7,1884.5,5.30641]
[1743171354240,0.15396826,1884.6,1884.5,5.30641]
[1743171354770,6.01,1884.7,1884.6,5.30616]
[1743171354970,1.5018,1885.0,1884.8,5.30548]
[1743171355147,1.5018,1885.0,1884.3,3.0]
[1743171355346,1.6561,1884.8,1884.2,5.686]
[1743171355674,11.3159,1884.7,1884.3,5.30677]